bitfinex-derivatives/quotes_SOLF0:USTF0_20241029
["timestamp","ask_amount","ask_price","bid_price","bid_amount"]
[1730187565750,2.7769,180.19,180.16,1.030335]
[1730187566656,2.7769,180.19,180.17,5.97988292]
[1730187566951,2.7769,180.19,180.16,1.030335]
[1730187567539,2.7769,180.19,180.17,5.97988292]
[1730187567739,2.7769,180.19,180.16,1.030335]
[1730187568651,2.7769,180.19,180.17,5.97988292]
[1730187568853,2.7769,180.19,180.16,1.030335]
[1730187569543,2.7769,180.19,180.17,5.97988292]
[1730187569744,2.7769,180.19,180.16,1.030335]
[1730187570655,2.7769,180.19,180.17,5.97988292]
[1730187570857,2.7769,180.19,180.16,1.030335]
[1730187571354,9.99988292,180.21,180.16,1.030335]
[1730187571747,5.97988292,180.2,180.16,1.030335]
[1730187572053,4.02,180.21,180.16,7.01021792]
[1730187572947,5.97988292,180.2,180.16,1.030335]
[1730187573355,2.7769,180.19,180.16,3.807635]
[1730187573551,2.7769,180.19,180.17,5.97988292]
[1730187573747,2.7769,180.19,180.16,3.807635]
[1730187575059,2.7769,180.19,180.16,9.78751792]
[1730187575750,2.7769,180.19,180.16,3.807635]
[1730187576546,2.7769,180.19,180.17,5.97988292]
[1730187576744,2.7767,180.2,180.16,3.807635]
[1730187577053,2.7767,180.2,180.17,5.97988292]
[1730187577844,2.7767,180.2,180.16,3.807635]
[1730187578558,2.7767,180.2,180.17,5.97988292]
[1730187578754,2.7767,180.2,180.16,3.807635]
[1730187579565,2.7767,180.2,180.17,5.97988292]
[1730187579860,2.7767,180.2,180.16,3.807635]
[1730187580547,2.7767,180.2,180.17,5.97988292]
[1730187580751,2.7767,180.2,180.16,3.807635]
[1730187581355,5.97988292,180.18,180.16,1.030335]
[1730187581551,2.7772,180.17,180.16,1.030335]
[1730187583854,8.75708292,180.17,180.16,1.030335]
[1730187584356,12.77708292,180.17,180.16,1.030335]
[1730187586360,4.02,180.17,180.04,1.3061]
[1730187586552,2.7782,180.11,180.07,8.75858292]
[1730187586759,9.97988292,180.13,180.07,5.97988292]
[1730187587064,2.7781,180.12,180.08,2.7785]
[1730187587259,9.97988292,180.13,180.08,2.7785]
[1730187588364,2.778,180.12,180.08,2.7785]
[1730187590764,2.778,180.12,180.09,5.97988292]
[1730187591862,2.778,180.12,180.08,8.75838292]
[1730187592863,2.778,180.12,180.08,2.7785]
[1730187594054,8.75788292,180.12,180.08,2.7785]
[1730187594458,5.97988292,180.12,180.06,5.97988292]
[1730187594761,8.75828292,180.1,180.07,2.7787]
[1730187594965,5.97988292,180.1,180.04,1.3061]
[1730187595268,2.7788,180.07,180.04,2.7792]
[1730187596061,8.75848292,180.08,180.04,2.7792]
[1730187596571,8.75848292,180.08,180.04,8.75908292]
[1730187598973,8.75848292,180.08,180.04,5.97988292]
[1730187599276,8.75848292,180.08,180.05,2.779]
[1730187599786,2.7786,180.08,180.05,2.779]
[1730187600683,2.7782,180.11,180.07,8.75848292]
[1730187601088,127.59656248,180.18,180.07,5.97988292]
[1730187601283,4.02,180.16,180.09,5.97988292]
[1730187601583,9.99988292,180.16,180.09,5.97988292]
[1730187601788,8.75768292,180.14,180.1,2.7781]
[1730187601986,5.97988292,180.14,180.1,2.7781]
[1730187602691,4.02,180.16,180.1,2.7781]
[1730187602891,5.97988292,180.14,180.1,2.7781]
[1730187603080,2.7778,180.13,180.09,2.7784]
[1730187603281,5.97988292,180.12,180.07,5.97988292]
[1730187603789,8.75798292,180.12,180.08,2.7786]
[1730187604192,2.7781,180.12,180.08,2.7786]
[1730187605883,8.75798292,180.12,180.08,2.7786]
[1730187607592,4.02,180.15,180.1,5.97988292]
[1730187607896,127.59656248,180.18,180.12,5.97988292]
[1730187607897,4.02,180.16,180.12,5.97988292]
[1730187608191,2.7775,180.15,180.12,5.97988292]
[1730187608498,10.67767635,180.17,180.11,5.97988292]
[1730187608792,10.67767635,180.17,180.13,5.97988292]
[1730187608986,10.67767635,180.17,180.12,5.97988292]
[1730187609589,16.65755927,180.17,180.12,5.97988292]
[1730187609788,2.7775,180.16,180.12,2.7778]
[1730187609981,5.97988292,180.15,180.09,5.97988292]
[1730187610182,5.97988292,180.15,180.1,5.97988292]
[1730187610586,8.75738292,180.15,180.09,5.97988292]
[1730187611184,2.778,180.14,180.09,5.97988292]
[1730187611689,2.778,180.14,180.1,2.7784]
[1730187611893,8.75768292,180.15,180.09,5.97988292]
[1730187612090,12.77768292,180.15,180.09,5.97988292]
[1730187612494,5.97988292,180.14,180.09,2.7786]
[1730187613496,4.02,180.15,180.09,2.7786]
[1730187613497,2.7781,180.13,180.09,2.7786]
[1730187613698,2.7781,180.13,180.09,8.75848292]
[1730187613894,2.7781,180.13,180.08,5.97988292]
[1730187614104,2.7781,180.13,180.1,8.75838292]
[1730187614900,2.7777,180.16,180.12,2.7781]
[1730187615093,4.02,180.17,180.14,5.97988292]
[1730187615496,4.02,180.17,180.13,5.97988292]
[1730187616291,2.7774,180.18,180.14,2.7778]
[1730187616699,2.7774,180.18,180.15,5.97988292]
[1730187616902,2.777,180.2,180.16,2.7776]
[1730187617197,4.0,180.2,180.16,5.97988292]
[1730187617502,2.7772,180.19,180.14,5.97988292]
[1730187617699,2.7772,180.19,180.16,5.97988292]
[1730187617995,2.7772,180.19,180.14,5.97988292]
[1730187618697,2.7772,180.19,180.16,5.97988292]
[1730187618902,2.7772,180.19,180.15,2.7778]
[1730187619404,13.45487635,180.19,180.15,2.7778]
[1730187619604,2.7772,180.19,180.16,5.97988292]
[1730187619802,2.7772,180.19,180.15,2.7778]
[1730187620193,2.7772,180.19,180.16,5.97988292]
[1730187620395,2.7776,180.17,180.13,2.7781]
[1730187620595,5.97988292,180.17,180.1,5.97988292]
[1730187620797,5.97988292,180.17,180.12,5.97988292]
[1730187620999,2.778,180.14,180.1,2.7785]
[1730187621195,2.778,180.14,180.11,5.97988292]
[1730187621509,2.778,180.14,180.1,2.7785]
[1730187621894,2.778,180.14,180.1,8.75838292]
[1730187622389,6.7776,180.16,180.11,5.97988292]
[1730187622590,6.7776,180.16,180.13,5.97988292]
[1730187622789,6.7776,180.16,180.12,5.97988292]
[1730187623204,4.0,180.16,180.08,4.0]
[1730187623405,2.7781,180.14,180.11,2.7784]
[1730187628507,8.75798292,180.14,180.11,2.7784]
[1730187630303,5.97988292,180.13,180.06,3.7584]
[1730187630499,5.97988292,180.1,180.06,3.7584]
[1730187630807,9.97988292,180.12,180.06,3.7584]
[1730187631110,2.7785,180.11,180.07,8.75878292]
[1730187632910,2.7785,180.11,180.07,2.7789]
[1730187637113,2.7785,180.1,180.07,2.7789]
[1730187638122,9.97988292,180.12,180.06,3.7584]
[1730187638420,2.7788,180.09,180.06,1.3105]
[1730187639420,5.97988292,180.09,180.05,2.7793]
[1730187639617,4.0,180.12,180.02,2.7797]
[1730187639618,2.7793,180.06,180.02,2.7797]
[1730187639923,2.7793,180.06,180.01,4.0]
[1730187640525,2.7793,180.06,180.03,2.7795]
[1730187640725,8.75888292,180.07,180.03,2.7795]
[1730187641420,5.97988292,180.07,180.0,7.24188292]
[1730187641621,5.97988292,180.07,180.02,2.7797]
[1730187642310,2.7792,180.06,180.02,2.7797]
[1730187644525,2.7792,180.06,180.03,2.7796]
[1730187657536,2.7793,180.05,180.02,2.7796]
[1730187657834,5.97988292,180.07,180.02,2.7796]
[1730187658239,2.7792,180.06,180.02,2.7796]
[1730187658931,2.7792,180.06,180.03,2.7796]
[1730187662743,5.97988292,180.07,180.01,5.97988292]
[1730187663042,4.0,180.09,180.05,5.97988292]
[1730187663340,4.0,180.1,180.05,5.97988292]
[1730187663545,5.97988292,180.09,180.05,5.97988292]
[1730187664332,2.7789,180.08,180.05,8.75918292]
[1730187664536,5.97988292,180.06,180.0,1.262]
[1730187664840,8.75918292,180.06,180.03,2.7796]
[1730187671037,2.7793,180.06,180.03,2.7796]
[1730187671339,2.7793,180.06,180.03,5.97988292]
[1730187671538,2.7793,180.06,180.0,1.262]
[1730187671539,5.97988292,180.1,180.05,5.97988292]
[1730187672146,2.7788,180.09,180.06,2.7791]
[1730187672539,5.97988292,180.08,180.03,5.97988292]
[1730187672737,8.75898292,180.07,180.04,2.7795]
[1730187676234,5.97988292,180.07,180.0,1.262]
[1730187676439,4.0,180.11,180.05,5.97988292]
[1730187676639,5.97988292,180.1,180.05,5.97988292]
[1730187678051,2.7788,180.09,180.06,2.779]
[1730187681551,8.75868292,180.09,180.06,2.779]
[1730187682247,8.75868292,180.09,180.05,2.7793]
[1730187682446,2.779,180.08,180.02,5.97988292]
[1730187683048,2.779,180.08,180.04,2.7793]
[1730187683949,5.97988292,180.07,180.0,1.262]
[1730187684155,5.97988292,180.05,180.02,2.7797]
[1730187684952,8.75928292,180.05,180.02,2.7797]
[1730187689155,5.97988292,180.05,180.0,7.24188292]
[1730187689355,2.7795,180.04,180.01,2.7799]
[1730187689555,5.97988292,180.03,180.0,1.262]
[1730187691055,8.75968292,180.03,180.0,4.042]
[1730187693661,5.97988292,180.03,180.0,4.042]
[1730187694966,5.97988292,180.03,180.0,1.262]
[1730187695555,5.97988292,180.03,179.97,5.97988292]
[1730187696462,5.97988292,180.02,179.95,4.0]
[1730187696766,5.97988292,180.02,179.95,9.97988292]
[1730187696963,5.97988292,180.02,179.96,5.97988292]
[1730187697161,8.75968292,180.02,179.96,5.97988292]
[1730187697957,8.75968292,180.02,179.99,2.7802]
[1730187702273,8.75998292,180.0,179.97,2.7805]
[1730187703769,5.97988292,180.0,179.96,2.7806]
[1730187703975,5.97988292,180.0,179.95,5.97988292]
[1730187704378,8.75998292,180.0,179.97,2.7804]
[1730187704578,5.97988292,179.99,179.93,3.7282]
[1730187704973,5.97988292,180.0,179.94,5.97988292]
[1730187705279,5.97988292,180.0,179.93,9.70808292]
[1730187705669,5.97988292,180.0,179.95,5.97988292]
[1730187706066,8.76028292,179.99,179.96,2.7806]
[1730187706277,8.76028292,179.99,179.93,9.70808292]
[1730187706680,2.7804,179.99,179.95,5.97988292]
[1730187706879,8.76028292,179.99,179.95,2.7807]
[1730187707283,2.7804,179.99,179.94,5.97988292]
[1730187707583,2.7804,179.99,179.95,5.97988292]
[1730187707882,8.76028292,179.99,179.93,9.70808292]
[1730187708382,8.76028292,179.99,179.96,2.7807]
[1730187708685,2.7804,179.99,179.96,2.7807]
[1730187708877,2.7799,180.02,179.99,2.7801]
[1730187709074,4.0,180.03,179.97,5.97988292]
[1730187709568,6.7797,180.03,180.0,2.78]
[1730187712487,5.97988292,180.02,179.99,2.7802]
[1730187714383,2.7799,180.02,179.99,2.7802]
[1730187715601,9.97988292,180.03,179.97,5.97988292]
[1730187715781,11.86527635,180.1,180.0,5.97988292]
[1730187716090,5.97988292,180.07,180.0,5.97988292]
[1730187716992,4.0,180.06,180.0,5.97988292]
[1730187717296,2.7793,180.05,180.02,2.7797]
[1730187723199,16.69,180.21,180.04,5.97988292]
[1730187723391,2.7788,180.09,180.06,2.7791]
[1730187723595,4.0,180.08,180.06,5.97988292]
[1730187723993,9.97988292,180.11,180.06,5.97988292]
[1730187724193,4.0,180.11,180.07,5.97988292]
[1730187724597,6.7784,180.11,180.08,2.7788]
[1730187724799,9.97988292,180.11,180.06,5.97988292]
[1730187725593,2.7786,180.1,180.04,5.97988292]
[1730187726102,2.7786,180.1,180.06,2.779]
[1730187726406,5.97988292,180.08,180.0,6.45957723]
[1730187726703,5.97988292,180.07,180.04,2.7794]
[1730187726904,5.97988292,180.1,180.04,5.97988292]
[1730187727102,2.7788,180.09,180.04,5.97988292]
[1730187727300,2.7788,180.09,180.05,2.7792]
[1730187727494,2.7789,180.08,180.05,2.7792]
[1730187728696,8.75878292,180.08,180.05,2.7792]
[1730187729608,2.7793,180.06,180.03,2.7795]
[1730187729905,5.97988292,180.05,180.0,3.61]
[1730187730495,2.7794,180.05,180.02,2.7797]
[1730187730807,8.75928292,180.05,180.02,2.7797]
[1730187734105,5.97988292,180.04,179.91,344.0]
[1730187734417,5.97988292,179.96,179.92,3.6711]
[1730187734708,4.0,179.99,179.92,3.6711]
[1730187734897,5.97988292,179.96,179.92,3.6711]
[1730187735408,5.97988292,179.97,179.92,3.6711]
[1730187735603,5.97988292,179.98,179.93,5.97988292]
[1730187736006,4.0,179.99,179.93,5.97988292]
[1730187736307,8.76048292,179.97,179.93,8.76088292]
[1730187737104,8.76048292,179.97,179.94,2.781]
[1730187737305,8.76048292,179.97,179.93,5.97988292]
[1730187737495,2.7804,179.98,179.93,5.97988292]
[1730187737899,9.97988292,179.99,179.95,2.7808]
[1730187739403,12.76018292,179.99,179.95,2.7808]
[1730187741703,12.76018292,179.99,179.96,2.7807]
[1730187743315,5.97988292,179.97,179.96,2.7807]
[1730187743511,5.97988292,179.97,179.92,9.65098292]
[1730187743706,5.97988292,179.97,179.94,2.781]
[1730187746408,5.97988292,179.97,179.95,2.7808]
[1730187747414,5.97988292,179.97,179.96,2.7807]
[1730187748512,5.97988292,179.97,179.92,8.46648292]
[1730187748710,5.97988292,179.97,179.95,2.7808]
[1730187752617,5.97988292,179.97,179.88,4.0]
[1730187752917,8.76058292,179.97,179.91,5.97988292]
[1730187753319,2.7807,179.97,179.94,2.781]
[1730187753519,8.76058292,179.97,179.94,2.781]
[1730187754132,12.27957635,180.06,179.93,5.97988292]
[1730187754319,8.75998292,180.0,179.94,5.97988292]
[1730187754520,4.0,179.99,179.94,5.97988292]
[1730187755015,4.0,179.99,179.96,2.7806]
[1730187757315,8.75998292,180.0,179.96,2.7806]
[1730187757517,4.0,179.99,179.96,2.7806]
[1730187758512,6.7802,179.99,179.96,2.7806]
[1730187758926,5.97988292,179.97,179.89,1.193]
[1730187759323,5.97988292,179.97,179.9,5.97988292]
[1730187760023,2.7807,179.96,179.93,2.781]
[1730187764426,12.27957635,180.06,179.93,5.97988292]
[1730187764625,8.75998292,180.0,179.97,2.7805]
[1730187764832,9.97988292,180.0,179.94,5.97988292]
[1730187765330,9.97988292,180.0,179.89,1.193]
[1730187765331,5.97988292,179.96,179.89,7.17288292]
[1730187765525,9.97988292,179.96,179.89,7.17288292]
[1730187765926,9.97988292,179.96,179.93,2.7811]
[1730187767126,5.97988292,179.95,179.93,2.7811]
[1730187767331,5.97988292,179.95,179.89,7.17288292]
[1730187768335,5.97988292,179.95,179.93,2.7811]
[1730187769826,6.7808,179.96,179.93,2.7811]
[1730187770031,9.97988292,179.96,179.93,2.7811]
[1730187771129,2.7806,179.97,179.9,5.97988292]
[1730187771432,5.97988292,179.99,179.96,2.7806]
[1730187775839,6.7802,180.0,179.96,2.7806]
[1730187776136,12.27957635,180.06,179.96,5.97988292]
[1730187776334,5.97988292,180.03,179.96,5.97988292]
[1730187776536,8.75968292,180.03,179.99,2.7802]
[1730187776736,5.97988292,180.03,179.96,5.97988292]
[1730187777235,8.75948292,180.03,179.96,5.97988292]
[1730187777742,8.75948292,180.03,179.99,2.7801]
[1730187778044,4.0,180.02,179.98,5.97988292]
[1730187778536,9.97988292,180.03,179.98,5.97988292]
[1730187778737,9.97988292,180.03,180.0,2.78]
[1730187778936,2.7798,180.02,179.95,1.19]
[1730187779136,2.7798,180.02,179.97,5.97988292]
[1730187780251,2.7798,180.02,179.99,2.7801]
[1730187782955,2.7803,179.99,179.96,2.7807]
[1730187783347,6.7803,179.99,179.96,2.7807]
[1730187783555,2.7808,179.96,179.92,2.7812]
[1730187783747,2.7808,179.96,179.91,5.97988292]
[1730187783951,5.97988292,179.97,179.91,5.97988292]
[1730187784152,5.97988292,179.97,179.93,2.781]
[1730187784752,8.76048292,179.97,179.93,2.781]
[1730187786249,2.7807,179.96,179.93,2.781]
[1730187786455,5.97988292,179.97,179.92,2.7813]
[1730187787347,2.7809,179.95,179.92,2.7813]
[1730187787748,6.7809,179.95,179.92,2.7813]
[1730187787948,12.76078292,179.95,179.92,2.7813]
[1730187793560,9.97988292,179.95,179.92,2.7813]
[1730187794158,4.0,179.95,179.94,2.781]
[1730187794563,4.0,179.95,179.91,5.97988292]
[1730187794762,4.0,179.95,179.93,2.7811]
[1730187795463,4.0,179.95,179.94,2.781]
[1730187795665,4.0,179.97,179.94,5.97988292]
[1730187796260,4.0,179.97,179.96,2.7806]
[1730187798065,9.97988292,179.99,179.96,2.7806]
[1730187798859,12.76018292,179.99,179.96,2.7806]
[1730187803573,8.76038292,179.98,179.94,2.781]
[1730187803763,5.97988292,179.98,179.94,2.781]
[1730187804473,8.76028292,179.98,179.94,2.781]
[1730187804673,5.97988292,179.97,179.92,2.7812]
[1730187805574,2.7808,179.96,179.92,2.7812]
[1730187807571,2.7808,179.96,179.93,2.7812]
[1730187807768,5.97988292,179.98,179.92,5.97988292]
[1730187807969,4.0,179.98,179.95,5.97988292]
[1730187808170,4.0,179.98,179.96,2.7806]
[1730187810363,4.0,180.0,179.98,2.7803]
[1730187810573,1.1813,180.05,179.98,2.7803]
[1730187810772,5.97988292,180.03,179.98,2.7803]
[1730187812162,4.0,180.04,179.98,2.7803]
[1730187812360,2.78,180.01,179.98,2.7803]
[1730187812765,2.78,180.01,179.98,8.76018292]
[1730187813178,6.78,180.01,179.98,8.76018292]
[1730187814179,2.7802,180.0,179.97,2.7805]
[1730187815279,6.78,180.01,179.97,2.7805]
[1730187816479,6.78,180.01,179.98,2.7804]
[1730187825195,6.78,180.01,179.99,5.97988292]
[1730187826896,6.78,180.01,179.91,6.4786]
[1730187826897,4.0,180.01,179.97,5.97988292]
[1730187827498,2.7801,180.0,179.97,8.76028292]
[1730187827890,4.0,180.01,179.97,5.97988292]
[1730187829399,6.78,180.01,179.98,2.7804]
[1730187832999,6.78,180.01,179.99,5.97988292]
[1730187833899,6.78,180.01,179.98,2.7804]
[1730187837202,2.7797,180.03,180.0,2.7801]
[1730187837397,6.7797,180.03,180.0,8.75998292]
[1730187840500,2.7798,180.02,179.99,5.97988292]
[1730187841103,2.7798,180.02,179.99,8.75998292]
[1730187842001,6.7797,180.03,179.99,5.97988292]
[1730187842201,4.0,180.03,179.99,5.97988292]
[1730187842603,2.7798,180.02,179.99,5.97988292]
[1730187842902,5.97988292,180.02,179.94,1.2282]
[1730187843103,5.97988292,180.02,179.96,5.97988292]
[1730187843401,4.0,180.03,179.97,5.97988292]
[1730187843791,4.0,180.03,179.99,5.97988292]
[1730187843995,4.0,180.03,179.99,8.76008292]
[1730187844194,4.0,180.03,179.97,5.97988292]
[1730187844711,2.7798,180.02,179.99,2.7802]
[1730187847504,2.7798,180.02,179.99,8.76008292]
[1730187847899,4.0,180.03,180.01,5.97988292]
[1730187848099,4.0,180.03,180.01,8.75968292]
[1730187848804,4.0,180.03,180.01,5.97988292]
[1730187848999,4.0,180.03,180.0,2.78]
[1730187849205,4.0,180.03,179.99,5.97988292]
[1730187849397,2.7798,180.02,179.99,5.97988292]
[1730187849599,4.0,180.03,179.99,5.97988292]
[1730187851597,2.7799,180.02,179.99,8.75998292]
[1730187852406,6.7797,180.03,179.99,8.75998292]
[1730187858007,6.7797,180.03,180.0,2.7801]
[1730187862513,4.0,180.03,179.99,8.75998292]
[1730187863511,6.7798,180.03,179.99,8.75998292]
[1730187864820,6.7798,180.03,179.99,2.7801]
[1730187865121,4.0,180.03,179.99,8.75998292]
[1730187865319,2.7799,180.02,179.99,8.75998292]
[1730187866020,6.7797,180.03,180.0,2.7801]
[1730187870018,4.0,180.03,179.99,5.97988292]
[1730187870723,2.7795,180.04,179.99,5.97988292]
[1730187871020,2.7795,180.04,180.01,2.7799]
[1730187872226,2.7795,180.04,180.0,2.78]
[1730187875536,2.7797,180.03,180.0,2.78]
[1730187878441,11.82402096,180.13,179.95,4.0]
[1730187878653,11.82402096,180.13,180.02,5.97988292]
[1730187878943,5.97988292,180.07,179.99,4.0]
[1730187879131,9.97988292,180.07,180.0,5.97988292]
[1730187879736,5.97988292,180.07,180.0,5.97988292]
[1730187879942,4.0,180.06,180.0,5.97988292]
[1730187880243,2.7794,180.05,180.02,2.7797]
[1730187880640,4.0,180.06,180.0,5.97988292]
[1730187880842,4.0,180.06,180.0,7.19568292]
[1730187881036,6.7792,180.06,180.02,2.7797]
[1730187881841,4.0,180.06,180.01,5.97988292]
[1730187882044,4.0,180.06,180.04,2.7794]
[1730187882342,10.58262096,180.13,180.04,5.97988292]
[1730187882643,2.7784,180.11,180.07,2.7789]
[1730187883741,13.36082096,180.13,180.08,5.97988292]
[1730187884044,4.0,180.13,180.07,5.97988292]
[1730187884555,2.7784,180.11,180.07,2.7789]
[1730187884743,2.7784,180.11,180.07,8.75878292]
[1730187885638,2.7784,180.11,180.07,5.97988292]
[1730187885842,2.7784,180.11,180.08,2.7788]
[1730187890445,2.7784,180.11,180.08,8.75868292]
[1730187892150,2.7787,180.09,180.0,3.7576]
[1730187892448,2.7787,180.09,180.05,5.97988292]
[1730187892957,2.7786,180.1,180.06,2.779]
[1730187894851,5.97988292,180.11,180.0,3.7576]
[1730187895057,2.7789,180.08,180.04,8.75928292]
[1730187895257,2.7789,180.08,180.04,5.97988292]
[1730187896250,2.7789,180.08,180.05,2.7793]
[1730187896558,2.7789,180.08,180.04,5.97988292]
[1730187896749,2.7789,180.08,180.04,8.75918292]
[1730187896955,2.7789,180.08,180.04,5.97988292]
[1730187898358,9.97988292,180.09,180.0,7.7576]
[1730187898656,2.7793,180.06,180.02,5.97988292]
[1730187899358,2.7793,180.06,180.03,2.7796]
[1730187900458,2.7795,180.04,180.01,2.7798]
[1730187903260,5.97988292,180.04,179.92,80.7687636]
[1730187903466,4.0,180.05,179.93,3.7948]
[1730187903763,5.97988292,180.0,179.94,5.97988292]
[1730187903953,8.76008292,180.0,179.96,2.7806]
[1730187904163,5.97988292,180.0,179.94,5.97988292]
[1730187904463,2.7803,179.99,179.95,2.7808]
[1730187904665,2.7803,179.99,179.94,5.97988292]
[1730187904873,5.97988292,179.97,179.93,1.3117]
[1730187905166,5.97988292,179.96,179.85,3.7948]
[1730187905353,4.0,179.97,179.86,5.97988292]
[1730187905354,5.97988292,179.93,179.86,5.97988292]
[1730187905555,9.97988292,179.93,179.85,3.7948]
[1730187905866,2.7814,179.92,179.87,2.782]
[1730187906163,2.7814,179.92,179.86,5.97988292]
[1730187906366,2.7814,179.92,179.88,2.7819]
[1730187906859,5.97988292,179.91,179.88,2.7819]
[1730187907063,5.97988292,179.91,179.85,3.7948]
[1730187907257,5.97988292,179.89,179.86,2.7822]
[1730187909151,5.97988292,179.89,179.87,2.7821]
[1730187910070,2.7814,179.92,179.88,2.7818]
[1730187910260,5.97988292,179.89,179.85,3.7948]
[1730187910463,5.97988292,179.9,179.85,3.7948]
[1730187911063,5.97988292,179.89,179.87,2.782]
[1730187911465,5.97988292,179.89,179.85,3.7948]
[1730187911466,8.76178292,179.89,179.85,4.0941]
[1730187911667,12.76178292,179.89,179.85,4.0941]
[1730187912567,12.76178292,179.89,179.79,2.536]
[1730187912568,5.97988292,179.87,179.81,5.97988292]
[1730187912955,5.97988292,179.85,179.82,2.7828]
[1730187913462,5.97988292,179.83,179.79,3.7183]
[1730187913658,5.97988292,179.83,179.79,1.1823]
[1730187913861,5.97988292,179.8,179.72,2.478]
[1730187914068,5.97988292,179.8,179.74,5.97988292]
[1730187914267,5.97988292,179.8,179.76,2.7837]
[1730187914468,9.97988292,179.81,179.76,5.97988292]
[1730187914662,2.782,179.88,179.84,2.7825]
[1730187914862,9.97988292,179.87,179.8,5.97988292]
[1730187915058,4.0,179.86,179.8,5.97988292]
[1730187915259,4.0,179.86,179.72,347.6603]
[1730187915260,8.76288292,179.82,179.77,2.7835]
[1730187915465,8.76288292,179.82,179.72,351.6603]
[1730187915466,4.0,179.86,179.78,5.97988292]
[1730187915663,5.97988292,179.86,179.81,5.97988292]
[1730187915870,4.0,179.87,179.83,5.97988292]
[1730187916066,4.0,179.89,179.84,5.97988292]
[1730187916263,4.0,179.89,179.78,4.0]
[1730187916264,5.97988292,179.88,179.85,2.7824]
[1730187916961,6.7818,179.89,179.85,2.7824]
[1730187917362,6.7813,179.93,179.89,2.7816]
[1730187917676,2.7813,179.93,179.86,5.97988292]
[1730187917880,12.76118292,179.93,179.86,5.97988292]
[1730187918271,12.76118292,179.93,179.89,2.7817]
[1730187918772,4.0,179.93,179.89,5.97988292]
[1730187919477,4.0,179.93,179.9,2.7816]
[1730187920378,9.97988292,179.93,179.86,5.97988292]
[1730187920963,12.76108292,179.93,179.88,2.7819]
[1730187921168,5.97988292,179.91,179.84,5.97988292]
[1730187921567,8.76148292,179.91,179.86,2.7822]
[1730187921769,5.97988292,179.91,179.86,2.7822]
[1730187922171,8.76138292,179.91,179.87,2.7821]
[1730187922683,4.0,179.93,179.89,5.97988292]
[1730187923178,4.0,179.93,179.91,2.7814]
[1730187923380,8.76078292,179.95,179.91,2.7814]
[1730187923574,4.1,179.94,179.91,2.7814]
[1730187923979,6.881,179.94,179.91,2.7814]
[1730187924484,12.86088292,179.94,179.9,2.7816]
[1730187925569,8.76108292,179.93,179.89,2.7818]
[1730187925769,4.1,179.94,179.87,5.97988292]
[1730187925975,10.07988292,179.94,179.88,5.97988292]
[1730187926385,6.881,179.94,179.9,8.76138292]
[1730187927887,6.881,179.94,179.91,2.7814]
[1730187928481,4.1,179.94,179.92,2.7813]
[1730187928872,10.07988292,179.94,179.82,4.0]
[1730187929080,10.07988292,179.94,179.91,2.7814]
[1730187930277,4.1,179.94,179.91,2.7814]
[1730187931976,4.1,179.98,179.93,5.97988292]
[1730187932376,5.97988292,179.97,179.92,5.97988292]
[1730187932576,2.7808,179.96,179.92,5.97988292]
[1730187932782,2.7808,179.96,179.91,5.97988292]
[1730187933175,2.7808,179.96,179.89,1.247]
[1730187933176,5.97988292,179.94,179.89,7.22688292]
[1730187933881,5.97988292,179.93,179.89,1.247]
[1730187934483,5.97988292,179.93,179.88,5.97988292]
[1730187935378,5.97988292,179.91,179.88,2.7819]
[1730187935875,5.97988292,179.93,179.9,2.7816]
[1730187936688,8.76108292,179.93,179.9,2.7816]
[1730187937407,8.76108292,179.93,179.89,2.7817]
[1730187941687,8.76108292,179.93,179.9,2.7816]
[1730187943284,2.7812,179.93,179.9,2.7816]
[1730187943884,4.1,179.95,179.92,2.7812]
[1730187944085,4.1,179.95,179.91,5.97988292]
[1730187944485,4.1,179.95,179.92,2.7813]
[1730187944993,6.8809,179.95,179.92,2.7813]
[1730187946483,2.7813,179.92,179.89,2.7818]
[1730187946689,8.76118292,179.92,179.87,8.45608292]
[1730187947194,8.76118292,179.92,179.89,2.7818]